bitfinex/quotes_BTCUSD_20220211
["timestamp","ask_amount","ask_price","bid_price","bid_amount"]
[1644561205730,0.41020855,43207.0,43201.0,0.00972218]
[1644561205931,0.06718048,43202.0,43201.0,0.00972218]
[1644561207331,0.06718048,43202.0,43201.0,0.06763018]
[1644561207573,0.06718048,43202.0,43201.0,0.11763018]
[1644561210080,0.35229955,43207.0,43201.0,0.11763018]
[1644561210278,0.35229955,43207.0,43202.0,0.067902]
[1644561210477,0.35229955,43207.0,43202.0,0.0681378]
[1644561210880,0.2605812,43209.0,43202.0,0.0681378]
[1644561211079,0.28567125,43208.0,43204.0,0.057904]
[1644561211326,0.08575939,43207.0,43204.0,0.057904]
[1644561211727,0.08575939,43207.0,43204.0,0.0581398]
[1644561211924,0.08575939,43207.0,43206.0,0.057904]
[1644561212125,0.36311906,43207.0,43206.0,0.057904]
[1644561215375,0.36284063,43207.0,43206.0,0.057904]
[1644561216178,0.36284063,43207.0,43205.0,0.0502358]
[1644561216375,0.36284063,43207.0,43204.0,0.0581398]
[1644561216376,0.26735772,43206.0,43204.0,0.0581398]
[1644561216575,0.26735772,43206.0,43204.0,0.057904]
[1644561216976,0.26735772,43206.0,43204.0,0.107904]
[1644561217377,0.26735772,43206.0,43204.0,0.165812]
[1644561217578,0.08548096,43207.0,43204.0,0.165812]
[1644561217878,0.23,43210.0,43204.0,0.1760478]
[1644561217879,0.287903,43210.0,43204.0,0.1760478]
[1644561218083,0.23,43210.0,43206.0,0.0578924]
[1644561218280,0.23,43210.0,43207.0,0.057888]
[1644561218477,0.23,43210.0,43209.0,0.01]
[1644561220130,0.23,43210.0,43209.0,0.067889]
[1644561221934,0.23,43210.0,43209.0,0.01]
[1644561226329,0.23,43210.0,43208.0,0.21231666]
[1644561226529,0.23,43210.0,43208.0,0.12578086]
[1644561226932,0.00061728,43214.0,43208.0,0.12578086]
[1644561226933,0.00061728,43214.0,43209.0,0.85]
[1644561227135,0.00061728,43214.0,43213.0,0.01]
[1644561227330,0.3847,43229.0,43213.0,0.0563]
[1644561227629,0.00061727,43214.0,43213.0,0.1063]
[1644561227829,0.00061727,43214.0,43213.0,0.33419696]
[1644561228028,0.00061727,43214.0,43213.0,0.62402909]
[1644561228327,0.00061727,43214.0,43213.0,0.72402909]
[1644561228529,0.35300055,43223.0,43215.0,0.115764]
[1644561228729,0.35300055,43223.0,43218.0,0.01]
[1644561229129,0.3390896,43222.0,43216.0,0.05]
[1644561229534,0.3390896,43222.0,43221.0,0.01]
[1644561230282,0.3847,43229.0,43221.0,0.01]
[1644561230481,0.8745,43230.0,43225.0,0.01]
[1644561230482,0.5558497,43230.0,43225.0,0.01]
[1644561230684,0.5558497,43230.0,43225.0,0.12574]
[1644561230882,0.5558497,43230.0,43225.0,0.17574]
[1644561230883,0.0679497,43230.0,43225.0,0.17574]
[1644561231083,0.00061989,43230.0,43225.0,0.17574]
[1644561231283,0.00061989,43230.0,43229.0,0.01]
[1644561232081,0.23,43230.0,43229.0,0.01]
[1644561232482,0.31141875,43230.0,43229.0,0.01]
[1644561233739,0.31141875,43230.0,43228.0,0.107871]
[1644561233933,0.31141875,43230.0,43224.0,0.05]
[1644561234331,0.36929575,43230.0,43223.0,0.05]
[1644561234532,0.42718248,43230.0,43223.0,0.107884]
[1644561234730,0.28074027,43224.0,43223.0,0.107884]
[1644561234933,0.62703213,43224.0,43223.0,0.05]
[1644561235132,0.00062082,43229.0,43223.0,0.05]
[1644561235331,0.00062082,43229.0,43224.0,0.01]
[1644561235731,0.36929475,43230.0,43224.0,0.01]
[1644561235931,0.00062058,43228.0,43224.0,0.01]
[1644561236131,0.28473715,43226.0,43223.0,0.05]
[1644561236932,0.28473715,43226.0,43225.0,0.057878]
[1644561237333,0.28473715,43226.0,43222.0,0.11576]
[1644561237603,0.14931651,43210.0,43198.0,0.5]
[1644561237797,0.96512,43209.0,43190.0,0.00201007]
[1644561237998,0.05,43202.0,43198.0,0.00023665]
[1644561238194,0.5786,43199.0,43187.0,0.00023665]
[1644561238394,0.0463,43198.0,43190.0,0.24647157]
[1644561238592,0.10422516,43197.0,43191.0,0.07151117]
[1644561238793,0.44674711,43197.0,43191.0,0.05174782]
[1644561238993,0.10422516,43197.0,43191.0,0.00023665]
[1644561239194,0.10422516,43197.0,43187.0,0.00023665]
[1644561239195,0.20422516,43197.0,43187.0,0.00023665]
[1644561239392,0.20422516,43197.0,43186.0,0.02]
[1644561239594,0.20422516,43197.0,43192.0,0.00015119]
[1644561239995,0.20422516,43197.0,43192.0,0.06606546]
[1644561240197,0.057928,43196.0,43192.0,0.06606546]
[1644561240393,0.0463,43195.0,43192.0,0.06606546]
[1644561240595,0.0463,43195.0,43192.0,0.06591427]
[1644561240896,0.0463,43195.0,43192.0,0.06641697]
[1644561241335,0.0363,43195.0,43192.0,0.06641697]
[1644561241735,0.0363,43195.0,43192.0,0.06591427]
[1644561242138,0.0363,43195.0,43192.0,0.06615092]
[1644561242742,0.0363,43195.0,43193.0,0.33822229]
[1644561243138,0.2663,43195.0,43193.0,0.33822229]
[1644561243642,0.2663,43195.0,43192.0,0.11615092]
[1644561244138,0.26506769,43195.0,43192.0,0.11615092]
[1644561244839,0.26506769,43195.0,43193.0,0.37249404]
[1644561246392,0.26506769,43195.0,43192.0,0.11664723]
[1644561246591,0.26506769,43195.0,43192.0,0.11615092]
[1644561246792,0.26506769,43195.0,43192.0,0.11664832]
[1644561247692,0.26506769,43195.0,43192.0,0.11615092]
[1644561250134,0.23,43195.0,43192.0,0.11615092]
[1644561250333,0.23,43195.0,43192.0,0.17405892]
[1644561250537,0.3,43201.0,43195.0,0.115812]
[1644561250732,0.3,43204.0,43203.0,0.07770804]
[1644561250932,0.00061935,43205.0,43203.0,0.07770804]
[1644561251133,0.27750609,43205.0,43196.0,0.00023665]
[1644561251334,0.3,43204.0,43203.0,9.361e-05]
[1644561251533,0.11573311,43208.0,43203.0,9.361e-05]
[1644561251534,0.00061945,43206.0,43203.0,9.361e-05]
[1644561252583,0.4,43207.0,43203.0,9.361e-05]
[1644561253192,0.057912,43205.0,43203.0,9.361e-05]
[1644561253483,0.4,43207.0,43203.0,9.361e-05]
[1644561253484,0.1,43207.0,43203.0,9.361e-05]
[1644561253685,0.1,43207.0,43203.0,0.00033026]
[1644561253886,0.47740328,43208.0,43203.0,9.361e-05]
[1644561254083,0.01,43207.0,43203.0,0.00033026]
[1644561254284,0.01,43207.0,43203.0,9.361e-05]
[1644561254484,0.067908,43207.0,43203.0,9.361e-05]
[1644561256531,0.06852799,43207.0,43203.0,9.361e-05]
[1644561257332,0.067908,43207.0,43203.0,9.361e-05]
[1644561257733,0.12581862,43207.0,43203.0,9.361e-05]
[1644561258335,0.115823,43206.0,43203.0,9.361e-05]
[1644561262987,0.22645221,43207.0,43203.0,9.361e-05]
[1644561263388,0.22582162,43207.0,43203.0,9.361e-05]
[1644561263591,0.01047135,43207.0,43205.0,0.06451252]
[1644561263831,0.01047135,43207.0,43205.0,9.361e-05]
[1644561264429,0.01047135,43207.0,43205.0,0.11588661]
[1644561264629,0.01047135,43207.0,43205.0,0.16588661]
[1644561264630,0.01,43207.0,43205.0,0.16588661]
[1644561265430,0.01,43207.0,43205.0,0.05009361]
[1644561265730,0.01,43207.0,43205.0,9.361e-05]
[1644561266930,0.01,43207.0,43203.0,0.36516091]
[1644561266931,0.01,43207.0,43204.0,0.11504294]
[1644561267129,0.01,43207.0,43205.0,0.05]
[1644561267332,0.01,43207.0,43205.0,0.05009361]
[1644561267777,0.00859705,43207.0,43205.0,0.05009361]
[1644561269883,0.00859705,43207.0,43205.0,9.361e-05]
[1644561269884,0.057909,43206.0,43205.0,9.361e-05]
[1644561270081,0.42338315,43206.0,43205.0,9.361e-05]
[1644561270279,0.52338315,43206.0,43205.0,9.361e-05]
[1644561272134,1.02338315,43206.0,43205.0,9.361e-05]
[1644561272333,0.52338315,43206.0,43205.0,9.361e-05]
[1644561272533,0.36231313,43206.0,43205.0,9.361e-05]
[1644561272733,0.49143751,43206.0,43205.0,9.361e-05]
[1644561272934,0.39143751,43206.0,43205.0,9.361e-05]
[1644561273134,0.47971239,43206.0,43205.0,9.361e-05]
[1644561273735,0.204209,43206.0,43205.0,9.361e-05]
[1644561274037,0.254209,43206.0,43205.0,9.361e-05]
[1644561274233,0.154209,43206.0,43205.0,9.361e-05]
[1644561275475,0.654209,43206.0,43205.0,9.361e-05]
[1644561275877,1.23434167,43206.0,43205.0,9.361e-05]
[1644561276175,1.07623754,43206.0,43205.0,9.361e-05]
[1644561276374,1.23434167,43206.0,43205.0,9.361e-05]
[1644561277378,1.81294167,43206.0,43205.0,9.361e-05]
[1644561277979,2.06583444,43206.0,43205.0,9.361e-05]
[1644561278182,1.81294167,43206.0,43205.0,9.361e-05]
[1644561279443,2.11473083,43206.0,43205.0,9.361e-05]
[1644561280045,2.11473083,43206.0,43199.0,0.00049814]
[1644561280046,0.00012028,43204.0,43199.0,0.00049814]
[1644561280248,0.5786,43200.0,43199.0,9.361e-05]
[1644561280446,1.1262197,43200.0,43199.0,0.00040453]
[1644561280646,0.31245263,43189.0,43188.0,0.00199306]
[1644561280849,0.77829585,43189.0,43188.0,0.00199306]
[1644561281046,0.76849416,43189.0,43188.0,0.00199306]
[1644561281448,0.82643816,43189.0,43187.0,0.00023665]
[1644561281646,0.28181564,43188.0,43182.0,0.00023665]
[1644561281851,0.0463,43187.0,43182.0,0.00023665]
[1644561282049,0.31272259,43187.0,43182.0,0.40430079]
[1644561282248,0.31272259,43187.0,43183.0,0.00023665]
[1644561282480,0.20424,43187.0,43183.0,0.00023665]
[1644561282878,0.20424,43187.0,43184.0,0.00049928]
[1644561283079,0.20424,43187.0,43185.0,0.00023665]
[1644561283478,0.10424,43187.0,43185.0,0.00023665]
[1644561284079,0.10424,43187.0,43184.0,0.00049928]
[1644561284280,0.10424,43187.0,43185.0,0.00023665]
[1644561284679,0.15424,43187.0,43185.0,0.00023665]
[1644561284881,0.42866659,43187.0,43185.0,0.00023665]
[1644561285281,0.42866659,43187.0,43186.0,0.0001]
[1644561285282,0.30424,43187.0,43186.0,0.0001]
[1644561285483,0.30424,43187.0,43185.0,0.00023665]
[1644561285484,0.965908,43186.0,43185.0,0.00023665]
[1644561285682,1.94876191,43186.0,43184.0,0.00049928]
[1644561285881,0.8786,43185.0,43184.0,0.00049928]
[1644561286088,1.08300413,43185.0,43184.0,0.00049928]
[1644561286345,1.08300413,43185.0,43170.0,0.42]
[1644561286346,0.36975644,43176.0,43170.0,0.42]
[1644561286545,0.05796195,43174.0,43170.0,0.42]
[1644561286739,0.104261,43173.0,43170.0,0.42]
[1644561286944,0.5786,43171.0,43170.0,0.42]
[1644561287147,0.6249,43171.0,43170.0,0.42]
[1644561287340,0.7249,43171.0,43170.0,0.2243]
[1644561287540,0.05796856,43168.0,43161.0,0.01]
[1644561287740,0.0463,43167.0,43161.0,0.01]
[1644561287940,0.057969,43166.0,43161.0,0.01]
[1644561288139,0.0463,43165.0,43161.0,0.01]
[1644561288346,0.42043,43165.0,43161.0,0.01]
[1644561288540,0.12043,43165.0,43161.0,0.01]
[1644561288740,0.2784074,43165.0,43161.0,0.01]
[1644561289140,0.057968,43164.0,43161.0,0.01]
[1644561289341,0.0463,43163.0,43161.0,0.01]
[1644561289980,0.36085708,43163.0,43161.0,0.01]
[1644561290382,0.46085708,43163.0,43161.0,0.01]
[1644561290580,0.14602144,43163.0,43161.0,0.35080964]
[1644561291381,0.04602144,43163.0,43161.0,0.01]
[1644561291680,0.38422173,43163.0,43161.0,0.01]
[1644561291879,0.14602144,43163.0,43161.0,0.01]
[1644561292284,0.14602144,43163.0,43162.0,0.2861435]
[1644561292483,0.14602144,43163.0,43162.0,0.50230646]
[1644561292484,0.04602144,43163.0,43162.0,0.50230646]
[1644561292683,0.6786,43169.0,43162.0,0.60230646]
[1644561292684,0.5786,43169.0,43162.0,0.60230646]
[1644561292880,0.0463,43168.0,43163.0,0.057953]
[1644561293080,0.0463,43168.0,43163.0,0.11614265]
[1644561293737,0.0463,43168.0,43166.0,0.06790986]
[1644561293929,0.0463,43168.0,43167.0,0.35544569]
[1644561294129,0.15820324,43178.0,43167.0,0.35544569]
[1644561294329,0.057952,43175.0,43167.0,0.05023665]
[1644561294529,0.3613848,43175.0,43167.0,0.05023665]
[1644561294729,0.05794897,43178.0,43167.0,0.00023665]
[1644561294933,0.05794897,43178.0,43170.0,0.00059532]
[1644561295331,0.05794897,43178.0,43170.0,0.10878297]
[1644561295332,0.057949,43177.0,43170.0,0.10878297]
[1644561295533,0.057949,43177.0,43171.0,0.057949]
[1644561295732,0.057949,43177.0,43173.0,0.06881405]
[1644561296632,0.057949,43177.0,43172.0,0.00023665]
[1644561296833,0.057949,43177.0,43172.0,0.05818465]
[1644561297233,0.057949,43177.0,43172.0,0.05877994]
[1644561298283,0.057949,43177.0,43172.0,0.05818465]
[1644561298582,0.057949,43177.0,43172.0,0.05877994]
[1644561298784,0.067949,43177.0,43172.0,0.05877994]
[1644561299383,0.067949,43177.0,43172.0,0.05818465]
[1644561299584,0.067949,43177.0,43172.0,0.05854329]
[1644561299888,0.01,43177.0,43172.0,0.05854329]
[1644561300685,0.01,43177.0,43172.0,0.057948]
[1644561300886,0.01,43177.0,43172.0,0.11648929]
[1644561301085,0.01,43177.0,43173.0,0.115882]
[1644561301328,0.01,43177.0,43173.0,0.16611865]
[1644561302230,0.01,43177.0,43173.0,0.16671394]
[1644561302430,0.01,43177.0,43173.0,0.22465694]
[1644561302637,0.01,43177.0,43173.0,0.16671394]
[1644561302830,0.01,43177.0,43173.0,0.16647729]
[1644561303031,0.01,43177.0,43173.0,0.165882]
[1644561303230,0.01,43177.0,43173.0,0.00059529]
[1644561303432,0.057956,43175.0,43173.0,0.00059529]
[1644561303630,0.057956,43175.0,43173.0,0.00083194]
[1644561303830,0.057956,43175.0,43173.0,0.00059529]
[1644561304331,0.057956,43175.0,43169.0,0.00023665]
[1644561304535,0.057956,43175.0,43172.0,0.0005953]
[1644561304730,0.057956,43175.0,43172.0,0.0585473]
[1644561305379,0.057956,43175.0,43172.0,0.057952]
[1644561305780,0.057956,43175.0,43172.0,0.05818865]
[1644561305982,0.32037754,43175.0,43172.0,0.00023665]
[1644561306186,0.0463,43174.0,43171.0,0.00059531]
[1644561306781,0.057958,43173.0,43170.0,0.00059532]
[1644561306984,0.25849899,43171.0,43170.0,0.00059532]
[1644561307182,0.52954663,43171.0,43170.0,0.00059532]
[1644561307383,0.37104764,43171.0,43170.0,0.00059532]
[1644561307582,0.1,43171.0,43170.0,0.00059532]
[1644561307788,0.1,43171.0,43169.0,0.00023665]
[1644561307983,0.1,43171.0,43168.0,0.22445135]
[1644561308382,0.44597118,43171.0,43168.0,0.22445135]
[1644561308582,0.34597118,43171.0,43168.0,0.224688]
[1644561308828,0.157956,43171.0,43168.0,0.224688]
[1644561309028,0.157956,43171.0,43168.0,0.22409265]
[1644561309729,0.1,43171.0,43168.0,0.22409265]
[1644561309929,0.31357531,43174.0,43168.0,0.22409265]
[1644561309930,0.39722809,43173.0,43168.0,0.22409265]
[1644561310431,0.49722809,43173.0,43168.0,0.22409265]
[1644561311630,0.49722809,43173.0,43168.0,0.224688]
[1644561312584,0.49722809,43173.0,43168.0,0.22409265]
[1644561312783,0.49722809,43173.0,43168.0,0.224688]
[1644561313584,0.49722809,43173.0,43168.0,0.174688]
[1644561313786,0.49722809,43173.0,43168.0,0.173856]
[1644561313985,0.49722809,43173.0,43168.0,0.17445135]
[1644561314785,0.55518554,43173.0,43168.0,0.22445135]
[1644561314984,0.55518554,43173.0,43168.0,0.223856]
[1644561314985,0.49722809,43173.0,43168.0,0.223856]
[1644561315185,0.49722809,43173.0,43168.0,0.22445135]
[1644561316243,0.0463,43172.0,43168.0,0.223856]
[1644561316432,0.32067006,43171.0,43169.0,0.052958]
[1644561316632,0.0463,43170.0,43169.0,0.05319465]
[1644561316831,0.30668219,43170.0,43169.0,0.052958]
[1644561317034,0.30668219,43170.0,43168.0,0.050832]
[1644561317233,0.30668219,43170.0,43168.0,0.00059535]
[1644561317432,0.25997615,43169.0,43167.0,0.00023665]
[1644561317633,0.25997615,43169.0,43167.0,0.05855737]
[1644561317634,0.36423815,43169.0,43167.0,0.05855737]
[1644561317834,0.30978066,43168.0,43167.0,0.05855737]
[1644561318035,0.30978066,43168.0,43167.0,0.00059537]
[1644561318036,0.35608066,43168.0,43167.0,0.00059537]
[1644561318237,0.45608066,43168.0,43167.0,0.00059537]
[1644561318633,0.05797,43167.0,43162.0,0.00023665]
[1644561318833,0.0463,43166.0,43165.0,0.00059539]
[1644561319134,0.74309624,43166.0,43165.0,0.00059539]
[1644561319335,0.84309624,43166.0,43165.0,0.00059539]
[1644561319979,0.84309624,43166.0,43163.0,0.00059542]
[1644561320180,0.0579675,43165.0,43163.0,0.00059542]
[1644561320379,0.33014843,43164.0,43163.0,0.00083207]
[1644561320580,0.33014843,43164.0,43163.0,0.00059542]
[1644561320882,0.43014843,43164.0,43163.0,0.00059542]
[1644561321080,0.43014843,43164.0,43162.0,0.10820465]
[1644561321281,0.43014843,43164.0,43162.0,0.057968]
[1644561321282,0.204268,43164.0,43162.0,0.057968]
[1644561321482,0.26223705,43164.0,43161.0,0.01083209]
[1644561321686,0.32021105,43164.0,43161.0,0.01059544]
[1644561322380,0.32021105,43164.0,43161.0,0.01]
[1644561322579,0.32021105,43164.0,43161.0,0.01023665]
[1644561322980,0.22021105,43164.0,43161.0,0.01023665]
[1644561323182,0.057971,43163.0,43161.0,0.01023665]
[1644561323383,0.30648123,43162.0,43161.0,0.01]
[1644561323828,0.40648123,43162.0,43161.0,0.01]
[1644561324227,0.1463,43162.0,43161.0,0.01]
[1644561324429,0.01,43166.0,43161.0,0.01]
[1644561324630,0.01,43166.0,43161.0,0.06818865]
[1644561325429,0.01,43166.0,43163.0,0.21274868]
[1644561325628,0.01,43166.0,43163.0,0.37866268]
[1644561325829,0.01,43166.0,43163.0,0.37889933]
[1644561326629,0.01,43166.0,43163.0,0.73861281]
[1644561326830,0.01,43166.0,43164.0,0.0754453]
[1644561327040,0.01,43166.0,43164.0,0.3652033]
[1644561327229,0.01,43166.0,43165.0,0.05]
[1644561330685,0.00972116,43166.0,43165.0,0.05]
[1644561343680,0.00972116,43166.0,43165.0,0.045]
[1644561349133,0.04913116,43167.0,43165.0,0.045]
[1644561349334,0.04913116,43167.0,43165.0,0.102963]
[1644561350882,0.04913116,43167.0,43164.0,0.00083206]
[1644561350883,0.27798574,43166.0,43164.0,0.00083206]
[1644561351086,0.315923,43165.0,43163.0,0.00023665]
[1644561351280,0.315923,43165.0,43164.0,0.00059541]
[1644561351481,0.257961,43165.0,43164.0,0.00059541]
[1644561352279,0.257961,43165.0,43163.0,0.00023665]
[1644561352479,0.257961,43165.0,43162.0,0.00113208]
[1644561352680,0.057963,43164.0,43162.0,0.00113208]
[1644561352881,0.057963,43164.0,43162.0,0.00089543]
[1644561353280,0.2,43165.0,43162.0,0.00089543]
[1644561353482,0.25949661,43164.0,43162.0,0.00053665]
[1644561353737,0.25949661,43164.0,43162.0,0.0003]
[1644561354330,0.267962,43165.0,43162.0,0.0003]
[1644561354531,0.267962,43165.0,43162.0,0.00053665]
[1644561354735,0.25863898,43164.0,43162.0,0.00053665]
[1644561354930,0.25863898,43164.0,43162.0,0.0003]
[1644561355530,0.2,43165.0,43162.0,0.0003]
[1644561355733,0.2,43165.0,43162.0,0.00053665]
[1644561358183,0.28726674,43166.0,43162.0,0.00053665]
[1644561358383,0.27798574,43166.0,43162.0,0.00053665]
[1644561359383,0.2,43168.0,43164.0,0.06432132]
[1644561359584,0.2,43169.0,43164.0,0.06432132]
[1644561359786,0.05,43168.0,43164.0,0.06432132]
[1644561360386,0.009281,43169.0,43166.0,0.39653108]
[1644561360586,0.35802167,43173.0,43166.0,0.39653108]
[1644561360587,0.05,43170.0,43166.0,0.39653108]
[1644561360787,0.2,43173.0,43166.0,0.39653108]
[1644561361645,0.32725368,43170.0,43166.0,0.39653108]
[1644561362046,0.32725368,43170.0,43167.0,0.00059536]
[1644561362246,0.2,43173.0,43168.0,0.23981258]
[1644561363146,0.50878484,43173.0,43168.0,0.23981258]
[1644561363347,0.50878484,43173.0,43168.0,0.24040793]
[1644561364344,0.50878484,43173.0,43168.0,0.23981258]
[1644561364546,0.50878484,43173.0,43168.0,0.24040793]
[1644561365084,0.2,43173.0,43168.0,0.24040793]
[1644561365292,0.009281,43174.0,43172.0,0.07338366]
[1644561366086,0.009281,43174.0,43172.0,0.13132066]
[1644561366284,0.009281,43174.0,43173.0,0.29673701]
[1644561366486,0.80115307,43181.0,43173.0,0.29673701]
[1644561366685,0.3438504,43181.0,43173.0,0.29673701]
[1644561366884,0.15802167,43181.0,43173.0,0.29673701]
[1644561367083,0.351,43185.0,43173.0,0.29673701]
[1644561367284,0.451,43185.0,43173.0,0.28467563]
[1644561367483,0.151,43185.0,43173.0,0.28467563]
[1644561367683,0.151,43185.0,43173.0,0.34260925]
[1644561367684,0.101,43185.0,43173.0,0.34260925]
[1644561367887,0.226151,43185.0,43175.0,0.24313062]
[1644561368084,0.226151,43185.0,43177.0,0.00059523]
[1644561368287,0.29788705,43182.0,43177.0,0.00059523]
[1644561369132,0.29788705,43182.0,43175.0,0.24313062]
[1644561369332,0.29788705,43182.0,43177.0,0.00059522]
[1644561369633,0.00198698,43181.0,43177.0,0.00059522]
[1644561369832,0.00170815,43181.0,43177.0,0.00059522]
[1644561370035,0.00170815,43181.0,43177.0,0.05852722]
[1644561370535,0.00170815,43181.0,43177.0,0.05852723]
[1644561371132,0.00170815,43181.0,43177.0,0.00059523]
[1644561371533,0.00170815,43181.0,43175.0,0.40899605]
[1644561371732,0.00170815,43181.0,43177.0,0.00059523]
[1644561372784,0.00170815,43181.0,43180.0,0.40080498]
[1644561373387,0.00170815,43181.0,43177.0,0.00059523]
[1644561373989,0.00170815,43181.0,43175.0,0.26210452]
[1644561374188,0.00170815,43181.0,43177.0,0.00059523]
[1644561375088,0.32997506,43183.0,43175.0,0.35719719]
[1644561375288,0.32997506,43183.0,43177.0,0.00059523]
[1644561376332,0.32997506,43183.0,43175.0,0.35719719]
[1644561376531,0.32997506,43183.0,43178.0,0.00059522]
[1644561377631,0.32997506,43183.0,43175.0,0.41513119]
[1644561377830,0.32997506,43183.0,43178.0,0.00059521]
[1644561378834,0.32997506,43183.0,43175.0,0.35719719]
[1644561379029,0.32997506,43183.0,43178.0,0.00059521]
[1644561381084,0.38791406,43183.0,43175.0,0.35719719]
[1644561381286,0.38791406,43183.0,43178.0,0.00059521]
[1644561382189,0.2,43180.0,43178.0,0.00059521]
[1644561382390,0.2,43180.0,43163.0,0.00023665]
[1644561382391,0.057953,43175.0,43163.0,0.00023665]
[1644561382587,0.29807581,43174.0,43172.0,0.00238121]
[1644561383288,0.057955,43173.0,43172.0,0.00238121]
[1644561383490,0.36914633,43173.0,43166.0,0.36711703]
[1644561383737,0.31506228,43170.0,43166.0,0.36711703]
[1644561384531,0.057957,43169.0,43166.0,0.36711703]
[1644561384733,0.57625402,43170.0,43166.0,0.36711703]
[1644561384932,0.57625402,43170.0,43166.0,0.36771241]
[1644561385532,0.63421002,43170.0,43166.0,0.00059538]
[1644561385733,0.75012102,43170.0,43166.0,0.00059538]
[1644561385932,0.75012102,43170.0,43163.0,0.00023665]
[1644561385933,0.75012102,43170.0,43162.0,0.00053665]
[1644561386136,0.69216502,43170.0,43166.0,0.00059538]
[1644561387234,0.057957,43168.0,43162.0,0.29311579]
[1644561387483,0.057957,43168.0,43166.0,0.00059538]
[1644561388082,0.2586767,43167.0,43166.0,0.00059538]
[1644561388486,0.2586767,43167.0,43162.0,0.29311579]
[1644561388689,0.2586767,43167.0,43165.0,0.0005954]
[1644561389085,0.2586767,43167.0,43165.0,0.0005234]
[1644561389686,0.2586767,43167.0,43162.0,0.29311579]
[1644561390487,0.057961,43166.0,43162.0,0.00053665]
[1644561390886,0.057961,43166.0,43162.0,0.0003]
[1644561391087,0.43098528,43170.0,43162.0,0.0003]
[1644561391342,0.009282,43167.0,43162.0,0.0003]
[1644561391536,0.009282,43167.0,43162.0,0.32020029]
[1644561392241,0.009282,43167.0,43162.0,0.32037892]
[1644561392636,0.173873,43169.0,43162.0,0.32037892]
[1644561393234,0.173873,43169.0,43162.0,0.32020029]
[1644561393535,0.173873,43169.0,43163.0,0.00059524]
[1644561393937,0.057957,43169.0,43163.0,0.00059524]
[1644561394434,0.057957,43169.0,43162.0,0.0003]
[1644561394636,0.057957,43169.0,43164.0,0.00059523]
[1644561395485,0.11406969,43169.0,43164.0,0.00059523]
[1644561395686,0.11406969,43169.0,43162.0,0.0003]
[1644561395989,0.10426,43168.0,43164.0,0.00059522]
[1644561396187,0.0463,43167.0,43164.0,0.00059522]
[1644561396388,0.29177505,43167.0,43164.0,0.00059522]
[1644561396589,0.40771005,43167.0,43164.0,0.00059522]
[1644561396788,0.115933,43166.0,43162.0,0.0003]
[1644561396986,0.0463,43165.0,43163.0,0.00059524]
[1644561397988,0.0463,43165.0,43162.0,0.0003]
[1644561398188,0.0463,43165.0,43162.0,0.00089526]
[1644561399236,0.0463,43165.0,43162.0,0.0003]
[1644561401433,0.162224,43165.0,43162.0,0.0003]
[1644561401637,0.26178191,43164.0,43162.0,0.0003]
[1644561401841,0.0463,43163.0,43162.0,0.0003]
[1644561403083,0.31095658,43163.0,43162.0,0.0003]
[1644561406636,0.42689658,43163.0,43162.0,0.0003]
[1644561407235,0.47689658,43163.0,43162.0,0.0003]
[1644561408436,0.57689658,43163.0,43162.0,0.0003]
[1644561408636,0.72621309,43163.0,43162.0,0.0003]
[1644561409037,0.88423476,43163.0,43162.0,0.0003]
[1644561410683,0.73491825,43163.0,43162.0,0.0003]
[1644561410983,0.69420325,43163.0,43162.0,0.0003]
[1644561411386,0.53618158,43163.0,43162.0,0.0003]
[1644561413085,0.213553,43163.0,43162.0,0.0003]
[1644561413285,0.113553,43163.0,43162.0,0.0003]
[1644561415134,0.38343104,43163.0,43162.0,0.0003]
[1644561416134,0.38343104,43163.0,43161.0,0.0003]
[1644561416334,0.26004823,43162.0,43161.0,0.0003]
[1644561416634,0.30634823,43162.0,43161.0,0.0003]
[1644561417239,0.0463,43162.0,43161.0,0.0003]
[1644561417888,0.009285,43163.0,43161.0,0.0003]
[1644561418285,0.009285,43163.0,43161.0,0.3835364]
[1644561421547,0.25973852,43172.0,43161.0,0.3835364]
[1644561421749,0.009285,43174.0,43169.0,0.12365047]
[1644561421945,0.009285,43174.0,43170.0,0.11587167]
[1644561422343,0.1177,43183.0,43170.0,0.057936]
[1644561422744,0.00928,43175.0,43170.0,0.057936]
[1644561423144,0.00928,43175.0,43169.0,0.32976163]
[1644561423345,0.00928,43175.0,43168.0,0.10794]
[1644561423346,0.00928,43175.0,43168.0,0.05794]
[1644561423546,0.00928,43175.0,43170.0,0.00054874]
[1644561424345,0.38483418,43175.0,43170.0,0.00054874]
[1644561424543,0.38483418,43175.0,43162.0,0.1646]
[1644561424743,0.38483418,43175.0,43170.0,0.00054874]
[1644561425786,0.38483418,43175.0,43162.0,0.0463]
[1644561425986,0.38483418,43175.0,43170.0,0.00048857]
[1644561426186,0.00928,43175.0,43170.0,0.00048857]
[1644561426987,0.29558694,43172.0,43163.0,0.115885]
[1644561427186,0.00928,43175.0,43170.0,0.00048857]
[1644561428488,0.1208,43177.0,43170.0,0.00048857]
[1644561429136,1.9763352,43176.0,43170.0,0.00048857]
[1644561429436,0.48618417,43175.0,43171.0,0.00049731]
[1644561429636,0.15802167,43175.0,43171.0,0.00049731]
[1644561429836,0.1208,43177.0,43171.0,0.00049731]
[1644561430439,0.1208,43177.0,43167.0,0.057943]
[1644561430737,0.1208,43177.0,43171.0,0.00049731]
[1644561431537,0.057942,43182.0,43171.0,0.00049731]
[1644561431738,0.057942,43182.0,43169.0,0.05794]
[1644561431938,0.057942,43182.0,43171.0,0.00049731]
[1644561432138,0.057944,43182.0,43171.0,0.00049731]
[1644561432993,0.54394173,43184.0,43167.0,0.057941]
[1644561433191,0.25802167,43183.0,43171.0,0.00049596]
[1644561433390,0.486,43184.0,43171.0,0.00049596]
[1644561433590,0.115891,43183.0,43168.0,0.00173781]
[1644561434190,0.115891,43183.0,43166.0,0.30488942]
[1644561434191,0.35253955,43176.0,43166.0,0.30488942]
[1644561435192,0.35253955,43176.0,43166.0,0.36283342]
[1644561435393,0.35253955,43176.0,43166.0,0.42077542]
[1644561436334,0.35253955,43176.0,43167.0,0.057942]
[1644561436938,0.35253955,43176.0,43168.0,0.057941]
[1644561437635,0.35253955,43176.0,43166.0,0.36301056]
[1644561437835,0.35253955,43176.0,43166.0,0.36342535]
[1644561438237,0.35253955,43176.0,43167.0,0.05794086]
[1644561438435,0.35253955,43176.0,43166.0,0.30548277]
[1644561438836,0.35253955,43176.0,43166.0,0.30488942]